{"text_format":"1","workbook":"xlsx","n_sheets":2,"sheets":["マクロ","様式２"],"not_rendered":{"charts":0,"images":1,"macros":1,"external_links":1,"defined_names":2,"comments":0,"pivot_tables":0},"unopened":[],"bounds":{"document_bytes":16777216,"sheet_cells":100000,"rows_first":2000,"rows_last":500,"rows_between":2000,"halvings":0,"cell_chars":16384,"cell_head_chars":4096},"cells_cut":0,"cells_raw":0,"read":"whole","date_system":"1900"}

{"sheet":"マクロ","index":0,"n_rows":16,"n_cols":11,"rows_kept":16,"cut":false,"hidden":false,"merged":[[1,8,1,10],[0,0,0,12]]}
["マリンマイスター　まとめ用"]
[null,null,null,null,null,null,null,null,"全国水産高等学校長協会"]
[]
[null,"①　生徒が作成したエクセルファイルを1つのフォルダに入れてください。　"]
[null,"②　そのフォルダにこの先生用のエクセルファイルも入れてください。　他のファイルは入れないでください(図１）。"]
[null,"③　「生徒のデータを集める」のボタンを押すと、様式2のシートにデータが集まります。"]
[]
[]
[]
[null,"④　シートがこの先生用ファイルに集まったら、下の「様式２にデータを入れる」を押してください。"]
[]
[]
[null,null,null,null,null,null,null,null,null,null,"図１　ファルダの参考例"]
[null,"⑤　様式２のシートに学校名と校長名を入力してください。"]
[null,"⑥　様式２を印刷して校長印を押して、校長協会に郵送してください。"]
[null,"⑦　この先生用ファイルは名前を「先生用（〇〇高校）」に変えて、校長協会にメールで送ってください。"]

{"sheet":"様式２","index":1,"n_rows":137,"n_cols":12,"rows_kept":137,"cut":false,"hidden":false,"merged":[[3,8,3,10],[6,8,6,10],[9,5,9,6],[0,0,0,1],[1,0,1,10]]}
["（様式２）"]
["マリンマイスター顕彰制度推薦名簿"]
[]
[null,null,null,null,null,null,null,"学校名","  〇〇県立△△水産",null,null,"高等学校"]
[]
[]
[null,null,null,null,null,null,null,"校　長","海　洋　一　郎",null,null,"　　印"]
[]
[]
["No.","学年","学科","学校名","氏名(カタカナ)","氏名(ローマ字)",null,"生年月日","得点\n合計","区分A\nの得点","賞","備考"]
[1,null,null,null,null,null,null,null,null,null,{"$f":"IF(I11<30,\" \",IF(I11<45,\"シルバー\",IF(I11<60,\"ゴールド\",\"プラチナ\")))","v":" "}]
[2,null,null,null,null,null,null,null,null,null,{"$f":"IF(I12<30,\" \",IF(I12<45,\"シルバー\",IF(I12<60,\"ゴールド\",\"プラチナ\")))","v":" "}]
[3,null,null,null,null,null,null,null,null,null," "]
[4,null,null,null,null,null,null,null,null,null," "]
[5,null,null,null,null,null,null,null,null,null," "]
[6,null,null,null,null,null,null,null,null,null," "]
[7,null,null,null,null,null,null,null,null,null," "]
[8,null,null,null,null,null,null,null,null,null," "]
[9,null,null,null,null,null,null,null,null,null," "]
[10,null,null,null,null,null,null,null,null,null," "]
[11,null,null,null,null,null,null,null,null,null,{"$f":"IF(I21<30,\" \",IF(I21<45,\"シルバー\",IF(I21<60,\"ゴールド\",\"プラチナ\")))","v":" "}]
[12,null,null,null,null,null,null,null,null,null," "]
[13,null,null,null,null,null,null,null,null,null," "]
[14,null,null,null,null,null,null,null,null,null," "]
[15,null,null,null,null,null,null,null,null,null," "]
[16,null,null,null,null,null,null,null,null,null," "]
[17,null,null,null,null,null,null,null,null,null," "]
[18,null,null,null,null,null,null,null,null,null," "]
[19,null,null,null,null,null,null,null,null,null," "]
[20,null,null,null,null,null,null,null,null,null," "]
[21,null,null,null,null,null,null,null,null,null," "]
[22,null,null,null,null,null,null,null,null,null," "]
[23,null,null,null,null,null,null,null,null,null," "]
[24,null,null,null,null,null,null,null,null,null," "]
[25,null,null,null,null,null,null,null,null,null," "]
[26,null,null,null,null,null,null,null,null,null," "]
[27,null,null,null,null,null,null,null,null,null," "]
[28,null,null,null,null,null,null,null,null,null," "]
[29,null,null,null,null,null,null,null,null,null," "]
[30,null,null,null,null,null,null,null,null,null," "]
[31,null,null,null,null,null,null,null,null,null," "]
[32,null,null,null,null,null,null,null,null,null," "]
[33,null,null,null,null,null,null,null,null,null," "]
[34,null,null,null,null,null,null,null,null,null," "]
[35,null,null,null,null,null,null,null,null,null," "]
[36,null,null,null,null,null,null,null,null,null," "]
[37,null,null,null,null,null,null,null,null,null," "]
[38,null,null,null,null,null,null,null,null,null," "]
[39,null,null,null,null,null,null,null,null,null," "]
[40,null,null,null,null,null,null,null,null,null," "]
[41,null,null,null,null,null,null,null,null,null," "]
[42,null,null,null,null,null,null,null,null,null," "]
[43,null,null,null,null,null,null,null,null,null," "]
[44,null,null,null,null,null,null,null,null,null," "]
[45,null,null,null,null,null,null,null,null,null," "]
[46,null,null,null,null,null,null,null,null,null," "]
[47,null,null,null,null,null,null,null,null,null," "]
[48,null,null,null,null,null,null,null,null,null," "]
[49,null,null,null,null,null,null,null,null,null," "]
[50,null,null,null,null,null,null,null,null,null," "]
[51,null,null,null,null,null,null,null,null,null," "]
[52,null,null,null,null,null,null,null,null,null," "]
[53,null,null,null,null,null,null,null,null,null," "]
[54,null,null,null,null,null,null,null,null,null," "]
[55,null,null,null,null,null,null,null,null,null," "]
[56,null,null,null,null,null,null,null,null,null," "]
[57,null,null,null,null,null,null,null,null,null," "]
[58,null,null,null,null,null,null,null,null,null," "]
[59,null,null,null,null,null,null,null,null,null," "]
[60,null,null,null,null,null,null,null,null,null," "]
[61,null,null,null,null,null,null,null,null,null," "]
[62,null,null,null,null,null,null,null,null,null," "]
[63,null,null,null,null,null,null,null,null,null," "]
[64,null,null,null,null,null,null,null,null,null," "]
[65,null,null,null,null,null,null,null,null,null," "]
[66,null,null,null,null,null,null,null,null,null,{"$f":"IF(I76<30,\" \",IF(I76<45,\"シルバー\",IF(I76<60,\"ゴールド\",\"プラチナ\")))","v":" "}]
[67,null,null,null,null,null,null,null,null,null," "]
[68,null,null,null,null,null,null,null,null,null," "]
[69,null,null,null,null,null,null,null,null,null," "]
[70,null,null,null,null,null,null,null,null,null," "]
[71,null,null,null,null,null,null,null,null,null," "]
[72,null,null,null,null,null,null,null,null,null," "]
[73,null,null,null,null,null,null,null,null,null," "]
[74,null,null,null,null,null,null,null,null,null," "]
[75,null,null,null,null,null,null,null,null,null," "]
[76,null,null,null,null,null,null,null,null,null," "]
[77,null,null,null,null,null,null,null,null,null," "]
[78,null,null,null,null,null,null,null,null,null," "]
[79,null,null,null,null,null,null,null,null,null," "]
[80,null,null,null,null,null,null,null,null,null," "]
[81,null,null,null,null,null,null,null,null,null," "]
[82,null,null,null,null,null,null,null,null,null," "]
[83,null,null,null,null,null,null,null,null,null," "]
[84,null,null,null,null,null,null,null,null,null," "]
[85,null,null,null,null,null,null,null,null,null," "]
[86,null,null,null,null,null,null,null,null,null," "]
[87,null,null,null,null,null,null,null,null,null," "]
[88,null,null,null,null,null,null,null,null,null," "]
[89,null,null,null,null,null,null,null,null,null," "]
[90,null,null,null,null,null,null,null,null,null," "]
[91,null,null,null,null,null,null,null,null,null," "]
[92,null,null,null,null,null,null,null,null,null," "]
[93,null,null,null,null,null,null,null,null,null," "]
[94,null,null,null,null,null,null,null,null,null," "]
[95,null,null,null,null,null,null,null,null,null," "]
[96,null,null,null,null,null,null,null,null,null," "]
[97,null,null,null,null,null,null,null,null,null," "]
[98,null,null,null,null,null,null,null,null,null," "]
[99,null,null,null,null,null,null,null,null,null," "]
[100,null,null,null,null,null,null,null,null,null," "]
[101,null,null,null,null,null,null,null,null,null," "]
[102,null,null,null,null,null,null,null,null,null," "]
[103,null,null,null,null,null,null,null,null,null," "]
[104,null,null,null,null,null,null,null,null,null," "]
[105,null,null,null,null,null,null,null,null,null," "]
[106,null,null,null,null,null,null,null,null,null," "]
[107,null,null,null,null,null,null,null,null,null," "]
[108,null,null,null,null,null,null,null,null,null," "]
[109,null,null,null,null,null,null,null,null,null," "]
[110,null,null,null,null,null,null,null,null,null," "]
[111,null,null,null,null,null,null,null,null,null," "]
[112,null,null,null,null,null,null,null,null,null," "]
[113,null,null,null,null,null,null,null,null,null," "]
[114,null,null,null,null,null,null,null,null,null," "]
[115,null,null,null,null,null,null,null,null,null," "]
[116,null,null,null,null,null,null,null,null,null," "]
[117,null,null,null,null,null,null,null,null,null," "]
[118,null,null,null,null,null,null,null,null,null," "]
[119,null,null,null,null,null,null,null,null,null," "]
[120,null,null,null,null,null,null,null,null,null," "]
[121,null,null,null,null,null,null,null,null,null," "]
[122,null,null,null,null,null,null,null,null,null," "]
[123,null,null,null,null,null,null,null,null,null," "]
[124,null,null,null,null,null,null,null,null,null," "]
[125,null,null,null,null,null,null,null,null,null," "]
[126,null,null,null,null,null,null,null,null,null," "]
[127,null,null,null,null,null,null,null,null,null," "]